[Event "Titled Tuesday Blitz November 22 Late 2022"]
[White "Sebag, Marie"]
[Black "Novikova, Galina"]
[WhiteFideId "617822"]
[BlackFideId "4157095"]
[WhiteElo "2440"]
[BlackElo "1973"]
[Result "0-1"]
[Round "02"]
[TimeControl "180+1"]
[Date "2022.11.23"]
[WhiteClock "0:00:45"]
[BlackClock "0:00:33"]

1. c4 {[%clk 0:03:00]}  e6 {[%clk 0:02:58]} 2. Nc3 {[%clk 0:02:59]}  d5 {[%clk 0:02:58]} 3. d4 {[%clk 0:02:56]}  c6 {[%clk 0:02:58]} 4. Bf4 {[%clk 0:02:55]}  Bd6 {[%clk 0:02:55]} 5. Bxd6 {[%clk 0:02:53]}  Qxd6 {[%clk 0:02:56]} 6. e3 {[%clk 0:02:51]}  Nf6 {[%clk 0:02:55]} 7. Nf3 {[%clk 0:02:50]}  Nbd7 {[%clk 0:02:51]} 8. Qc2 {[%clk 0:02:49]}  O-O {[%clk 0:02:49]} 9. Be2 {[%clk 0:02:46]}  dxc4 {[%clk 0:02:41]} 10. Bxc4 {[%clk 0:02:45]}  e5 {[%clk 0:02:40]} 11. dxe5 {[%clk 0:02:39]}  Nxe5 {[%clk 0:02:40]} 12. Nxe5 {[%clk 0:02:39]}  Qxe5 {[%clk 0:02:41]} 13. h3 {[%clk 0:02:34]}  Bf5 {[%clk 0:02:21]} 14. Qe2 {[%clk 0:02:28]}  b5 {[%clk 0:02:14]} 15. Bd3 {[%clk 0:02:25]}  Bxd3 {[%clk 0:02:03]} 16. Qxd3 {[%clk 0:02:25]}  Rad8 {[%clk 0:02:03]} 17. Qe2 {[%clk 0:02:25]}  b4 {[%clk 0:02:01]} 18. Na4 {[%clk 0:02:18]}  Ne4 {[%clk 0:01:57]} 19. O-O {[%clk 0:02:16]}  Rd2 {[%clk 0:01:51]} 20. Qf3 {[%clk 0:02:08]}  f5 {[%clk 0:01:36]} 21. Rad1 {[%clk 0:02:01]}  Rfd8 {[%clk 0:01:35]} 22. Rc1 {[%clk 0:02:00]}  R8d6 {[%clk 0:01:15]} 23. Rc4 {[%clk 0:01:41]}  Qb5 {[%clk 0:00:36]} 24. b3 {[%clk 0:01:38]}  R2d5 {[%clk 0:00:37]} 25. Rfc1 {[%clk 0:01:10]}  Nd2 {[%clk 0:00:36]} 26. Qh5 {[%clk 0:01:10]}  g6 {[%clk 0:00:36]} 27. Qh6 {[%clk 0:01:02]}  Nxc4 {[%clk 0:00:36]} 28. bxc4 {[%clk 0:01:01]}  Rd1+ {[%clk 0:00:37]} 29. Rxd1 {[%clk 0:00:59]}  Rxd1+ {[%clk 0:00:38]} 30. Kh2 {[%clk 0:00:59]}  Qe5+ {[%clk 0:00:39]} 31. g3 {[%clk 0:00:57]}  Rd2 {[%clk 0:00:38]} 32. Kg2 {[%clk 0:00:52]}  Rxa2 {[%clk 0:00:38]} 33. Qg5 {[%clk 0:00:48]}  Qe4+ {[%clk 0:00:34]} 34. Kg1 {[%clk 0:00:45]}  Ra1+ {[%clk 0:00:33]} 0-1


[Site "https://www.chess.com"]

[Event "Titled Tuesday Blitz November 22 Late 2022"]
[White "Shimanov, Aleksandr"]
[Black "Riff, Vincent"]
[WhiteFideId "4198603"]
[BlackFideId "617776"]
[WhiteElo "2605"]
[BlackElo "2369"]
[Result "1/2-1/2"]
[Round "02"]
[TimeControl "180+1"]
[Date "2022.11.22"]
[WhiteClock "0:00:50"]
[BlackClock "0:00:20"]

1. e4 {[%clk 0:02:56]}  c5 {[%clk 0:02:57]} 2. Nf3 {[%clk 0:02:56]}  Nc6 {[%clk 0:02:58]} 3. Bb5 {[%clk 0:02:54]}  d6 {[%clk 0:02:57]} 4. O-O {[%clk 0:02:53]}  Bd7 {[%clk 0:02:57]} 5. c3 {[%clk 0:02:53]}  Nf6 {[%clk 0:02:57]} 6. Re1 {[%clk 0:02:52]}  a6 {[%clk 0:02:58]} 7. Ba4 {[%clk 0:02:52]}  b5 {[%clk 0:02:56]} 8. Bc2 {[%clk 0:02:51]}  Bg4 {[%clk 0:02:55]} 9. d3 {[%clk 0:02:51]}  e6 {[%clk 0:02:55]} 10. Nbd2 {[%clk 0:02:51]}  Be7 {[%clk 0:02:54]} 11. h3 {[%clk 0:02:51]}  Bh5 {[%clk 0:02:54]} 12. Nf1 {[%clk 0:02:50]}  O-O {[%clk 0:02:53]} 13. Ng3 {[%clk 0:02:50]}  Bg6 {[%clk 0:02:53]} 14. d4 {[%clk 0:02:40]}  cxd4 {[%clk 0:02:52]} 15. cxd4 {[%clk 0:02:41]}  d5 {[%clk 0:02:51]} 16. e5 {[%clk 0:02:41]}  Nd7 {[%clk 0:02:50]} 17. Bxg6 {[%clk 0:02:39]}  hxg6 {[%clk 0:02:42]} 18. Be3 {[%clk 0:02:38]}  Rc8 {[%clk 0:02:33]} 19. Nh2 {[%clk 0:02:32]}  Nb4 {[%clk 0:02:27]} 20. Re2 {[%clk 0:02:26]}  Bg5 {[%clk 0:02:07]} 21. a3 {[%clk 0:02:09]}  Nc6 {[%clk 0:02:06]} 22. Rc1 {[%clk 0:02:07]}  Bxe3 {[%clk 0:01:25]} 23. fxe3 {[%clk 0:02:08]}  Qg5 {[%clk 0:01:20]} 24. Ngf1 {[%clk 0:02:03]}  Nxd4 {[%clk 0:01:09]} 25. Rf2 {[%clk 0:01:58]}  Rxc1 {[%clk 0:01:04]} 26. Qxc1 {[%clk 0:01:59]}  Nxe5 {[%clk 0:00:54]} 27. Qc7 {[%clk 0:01:59]}  Ndc6 {[%clk 0:00:52]} 28. Nf3 {[%clk 0:01:55]}  Nxf3+ {[%clk 0:00:48]} 29. Rxf3 {[%clk 0:01:56]}  Ne5 {[%clk 0:00:48]} 30. Rf2 {[%clk 0:01:53]}  Nc4 {[%clk 0:00:48]} 31. Qa7 {[%clk 0:01:51]}  Qe5 {[%clk 0:00:40]} 32. Qxa6 {[%clk 0:01:47]}  Nxb2 {[%clk 0:00:39]} 33. Qxb5 {[%clk 0:01:47]}  Nc4 {[%clk 0:00:38]} 34. a4 {[%clk 0:01:47]}  Rb8 {[%clk 0:00:25]} 35. Qc5 {[%clk 0:01:46]}  Rb1 {[%clk 0:00:25]} 36. Re2 {[%clk 0:00:50]}  Qf5 {[%clk 0:00:20]} 37. Rf2 {[%clk 0:00:50]}  Qe5 {[%clk 0:00:20]} 38. Re2 {[%clk 0:00:50]}  Qf5 {[%clk 0:00:20]} 39. Rf2 {[%clk 0:00:50]}  Qe5 {[%clk 0:00:20]} 1/2-1/2


[Site "https://www.chess.com"]

[Event "Titled Tuesday Blitz November 22 Late 2022"]
[White "Silva, Pedro Gil Ferreira Da"]
[Black "Mendonca, Mateus Nakajo"]
[WhiteFideId "1946102"]
[BlackFideId "2110954"]
[WhiteElo "2241"]
[BlackElo "2310"]
[Result "0-1"]
[Round "02"]
[TimeControl "180+1"]
[Date "2022.11.23"]
[WhiteClock "0:01:30"]
[BlackClock "0:00:36"]

1. c4 {[%clk 0:02:59]}  e6 {[%clk 0:02:59]} 2. Nf3 {[%clk 0:02:54]}  d5 {[%clk 0:02:58]} 3. g3 {[%clk 0:02:49]}  c6 {[%clk 0:02:55]} 4. Bg2 {[%clk 0:02:48]}  dxc4 {[%clk 0:02:55]} 5. Ne5 {[%clk 0:02:45]}  Qd4 {[%clk 0:02:49]} 6. f4 {[%clk 0:02:44]}  Nd7 {[%clk 0:02:37]} 7. e3 {[%clk 0:02:32]}  Qc5 {[%clk 0:02:35]} 8. d4 {[%clk 0:02:19]}  cxd3 {[%clk 0:01:55]} 9. Nxd3 {[%clk 0:02:16]}  Qb6 {[%clk 0:01:55]} 10. Nc3 {[%clk 0:02:16]}  Ngf6 {[%clk 0:01:54]} 11. O-O {[%clk 0:02:14]}  Be7 {[%clk 0:01:49]} 12. Kh1 {[%clk 0:02:13]}  h5 {[%clk 0:01:43]} 13. h3 {[%clk 0:02:07]}  Nc5 {[%clk 0:01:03]} 14. e4 {[%clk 0:02:06]}  Nxd3 {[%clk 0:01:01]} 15. Qxd3 {[%clk 0:02:07]}  Bd7 {[%clk 0:00:59]} 16. Be3 {[%clk 0:02:05]}  Qa5 {[%clk 0:00:57]} 17. a3 {[%clk 0:01:57]}  O-O {[%clk 0:00:55]} 18. b4 {[%clk 0:01:55]}  Qc7 {[%clk 0:00:54]} 19. Rac1 {[%clk 0:01:52]}  Rad8 {[%clk 0:00:49]} 20. e5 {[%clk 0:01:51]}  Nd5 {[%clk 0:00:49]} 21. Bxd5 {[%clk 0:01:48]}  exd5 {[%clk 0:00:46]} 22. Nxd5 {[%clk 0:01:46]}  Bxh3 {[%clk 0:00:44]} 23. Rfd1 {[%clk 0:01:33]}  Qd7 {[%clk 0:00:36]} 24. Nf6+ {[%clk 0:01:30]} 0-1


[Site "https://www.chess.com"]

[Event "Titled Tuesday Blitz November 22 Late 2022"]
[White "Stanisz, Patryk"]
[Black "Jaracz, Pawel"]
[WhiteFideId "1123106"]
[BlackFideId "1102222"]
[WhiteElo "2069"]
[BlackElo "2459"]
[Result "0-1"]
[Round "02"]
[TimeControl "180+1"]
[Date "2022.11.23"]
[WhiteClock "0:00:02"]
[BlackClock "0:00:53"]

1. d4 {[%clk 0:02:44]}  Nf6 {[%clk 0:02:59]} 2. c4 {[%clk 0:02:44]}  e6 {[%clk 0:02:59]} 3. Nc3 {[%clk 0:02:44]}  Bb4 {[%clk 0:02:59]} 4. e3 {[%clk 0:02:44]}  O-O {[%clk 0:02:55]} 5. Ne2 {[%clk 0:02:44]}  d5 {[%clk 0:02:52]} 6. a3 {[%clk 0:02:43]}  Bd6 {[%clk 0:02:51]} 7. Ng3 {[%clk 0:02:21]}  c6 {[%clk 0:02:50]} 8. Bd3 {[%clk 0:02:20]}  Nbd7 {[%clk 0:02:38]} 9. e4 {[%clk 0:02:18]}  e5 {[%clk 0:02:34]} 10. cxd5 {[%clk 0:01:56]}  exd4 {[%clk 0:02:29]} 11. Nce2 {[%clk 0:01:10]}  cxd5 {[%clk 0:02:24]} 12. exd5 {[%clk 0:01:07]}  Nc5 {[%clk 0:02:13]} 13. O-O {[%clk 0:01:02]}  Nxd3 {[%clk 0:02:05]} 14. Qxd3 {[%clk 0:01:01]}  Be5 {[%clk 0:01:54]} 15. f4 {[%clk 0:00:55]}  Bc7 {[%clk 0:01:54]} 16. Kh1 {[%clk 0:00:35]}  Qxd5 {[%clk 0:01:52]} 17. Qxd4 {[%clk 0:00:33]}  Qxd4 {[%clk 0:01:38]} 18. Nxd4 {[%clk 0:00:34]}  Bb6 {[%clk 0:01:39]} 19. Ndf5 {[%clk 0:00:30]}  Re8 {[%clk 0:01:24]} 20. Nd6 {[%clk 0:00:29]}  Rd8 {[%clk 0:01:21]} 21. Nxc8 {[%clk 0:00:18]}  Raxc8 {[%clk 0:01:22]} 22. f5 {[%clk 0:00:15]}  Rc2 {[%clk 0:01:19]} 23. Bg5 {[%clk 0:00:11]}  Rxb2 {[%clk 0:01:12]} 24. Bxf6 {[%clk 0:00:11]}  gxf6 {[%clk 0:01:12]} 25. Ne4 {[%clk 0:00:11]}  Kg7 {[%clk 0:01:09]} 26. Rf3 {[%clk 0:00:08]}  Bd4 {[%clk 0:01:05]} 27. Rd1 {[%clk 0:00:05]}  Be5 {[%clk 0:01:00]} 28. Rdf1 {[%clk 0:00:02]}  Rd4 {[%clk 0:00:54]} 29. g3 {[%clk 0:00:02]}  Rxe4 {[%clk 0:00:53]} 0-1


[Site "https://www.chess.com"]

[Event "Titled Tuesday Blitz November 22 Late 2022"]
[White "Suarez Uriel, Adrian"]
[Black "chess50years"]
[WhiteFideId "22230874"]
[WhiteElo "2331"]
[BlackElo "2062"]
[Result "1-0"]
[Round "02"]
[TimeControl "180+1"]
[Date "2022.11.23"]
[WhiteClock "0:02:13"]
[BlackClock "0:00:46"]

1. d4 {[%clk 0:03:00]}  d6 {[%clk 0:02:53]} 2. Nf3 {[%clk 0:02:59]}  g6 {[%clk 0:02:52]} 3. h4 {[%clk 0:02:57]}  Nf6 {[%clk 0:02:50]} 4. h5 {[%clk 0:02:49]}  Nxh5 {[%clk 0:02:49]} 5. Rxh5 {[%clk 0:02:49]}  gxh5 {[%clk 0:02:49]} 6. e4 {[%clk 0:02:50]}  Bg4 {[%clk 0:02:45]} 7. Nc3 {[%clk 0:02:49]}  Bg7 {[%clk 0:02:44]} 8. Be2 {[%clk 0:02:49]}  Nc6 {[%clk 0:02:41]} 9. Be3 {[%clk 0:02:48]}  e5 {[%clk 0:02:38]} 10. d5 {[%clk 0:02:44]}  Bxf3 {[%clk 0:02:38]} 11. dxc6 {[%clk 0:02:40]}  Bxe2 {[%clk 0:02:37]} 12. Qxe2 {[%clk 0:02:41]}  bxc6 {[%clk 0:02:23]} 13. Qxh5 {[%clk 0:02:40]}  Qf6 {[%clk 0:02:13]} 14. O-O-O {[%clk 0:02:38]}  Qg6 {[%clk 0:02:09]} 15. Qh3 {[%clk 0:02:34]}  O-O {[%clk 0:02:01]} 16. g4 {[%clk 0:02:33]}  Bf6 {[%clk 0:01:57]} 17. g5 {[%clk 0:02:28]}  Bxg5 {[%clk 0:01:49]} 18. Ne2 {[%clk 0:02:21]}  Bxe3+ {[%clk 0:01:48]} 19. Qxe3 {[%clk 0:02:21]}  Kh8 {[%clk 0:01:46]} 20. Ng3 {[%clk 0:02:21]}  Rab8 {[%clk 0:01:23]} 21. Nf5 {[%clk 0:02:19]}  Rb6 {[%clk 0:01:16]} 22. b3 {[%clk 0:02:18]}  c5 {[%clk 0:01:05]} 23. Rh1 {[%clk 0:02:17]}  c4 {[%clk 0:01:01]} 24. Rh6 {[%clk 0:02:17]}  Qg1+ {[%clk 0:00:57]} 25. Kb2 {[%clk 0:02:17]}  c3+ {[%clk 0:00:49]} 26. Qxc3 {[%clk 0:02:13]}  Qxf2 {[%clk 0:00:46]} 27. Qh3 {[%clk 0:02:13]} 1-0


[Site "https://www.chess.com"]

[Event "Titled Tuesday Blitz November 22 Late 2022"]
[White "Szyszylo, Rafal"]
[Black "Xiong, Jeffery"]
[WhiteFideId "1109626"]
[BlackFideId "2047640"]
[WhiteElo "1981"]
[BlackElo "2725"]
[Result "0-1"]
[Round "02"]
[TimeControl "180+1"]
[Date "2022.11.23"]
[WhiteClock "0:00:06"]
[BlackClock "0:00:27"]

1. e4 {[%clk 0:03:00]}  c5 {[%clk 0:03:00]} 2. Nf3 {[%clk 0:03:00]}  d6 {[%clk 0:03:00]} 3. d4 {[%clk 0:02:59]}  cxd4 {[%clk 0:03:01]} 4. Nxd4 {[%clk 0:03:00]}  Nf6 {[%clk 0:03:02]} 5. Nc3 {[%clk 0:03:00]}  a6 {[%clk 0:03:03]} 6. Bc4 {[%clk 0:03:00]}  h5 {[%clk 0:02:54]} 7. Bb3 {[%clk 0:02:52]}  Nbd7 {[%clk 0:02:53]} 8. f4 {[%clk 0:02:50]}  Nc5 {[%clk 0:02:51]} 9. e5 {[%clk 0:02:47]}  Bg4 {[%clk 0:02:50]} 10. Qd2 {[%clk 0:02:36]}  dxe5 {[%clk 0:02:50]} 11. fxe5 {[%clk 0:02:36]}  Nxb3 {[%clk 0:02:50]} 12. axb3 {[%clk 0:02:33]}  Nd5 {[%clk 0:02:51]} 13. e6 {[%clk 0:02:10]}  Bxe6 {[%clk 0:02:40]} 14. Nxe6 {[%clk 0:02:09]}  fxe6 {[%clk 0:02:41]} 15. O-O {[%clk 0:01:44]}  Qb6+ {[%clk 0:02:35]} 16. Kh1 {[%clk 0:01:43]}  O-O-O {[%clk 0:02:35]} 17. Qe2 {[%clk 0:01:36]}  Qc6 {[%clk 0:02:28]} 18. Na4 {[%clk 0:01:27]}  g5 {[%clk 0:02:23]} 19. c4 {[%clk 0:01:26]}  Nf4 {[%clk 0:02:23]} 20. Bxf4 {[%clk 0:01:26]}  gxf4 {[%clk 0:02:24]} 21. Rxf4 {[%clk 0:01:17]}  Bh6 {[%clk 0:02:24]} 22. Re4 {[%clk 0:01:17]}  Rd2 {[%clk 0:02:23]} 23. Qf3 {[%clk 0:01:07]}  Rf8 {[%clk 0:02:22]} 24. Qg3 {[%clk 0:00:37]}  b5 {[%clk 0:01:56]} 25. Nc3 {[%clk 0:00:25]}  b4 {[%clk 0:01:52]} 26. Nd5 {[%clk 0:00:13]}  exd5 {[%clk 0:01:48]} 27. cxd5 {[%clk 0:00:12]}  Rxd5 {[%clk 0:00:44]} 28. Rae1 {[%clk 0:00:12]}  Rdf5 {[%clk 0:00:42]} 29. h3 {[%clk 0:00:10]}  Rf1+ {[%clk 0:00:42]} 30. Kh2 {[%clk 0:00:10]}  Rxe1 {[%clk 0:00:43]} 31. Qxe1 {[%clk 0:00:10]}  Bf4+ {[%clk 0:00:39]} 32. Kh1 {[%clk 0:00:10]}  Bg3 {[%clk 0:00:28]} 33. Qe2 {[%clk 0:00:06]}  Qc1+ {[%clk 0:00:27]} 0-1


[Site "https://www.chess.com"]

[Event "Titled Tuesday Blitz November 22 Late 2022"]
[White "Tanenbaum, Zachary"]
[Black "Khandelwal, Ankush"]
[WhiteFideId "2060850"]
[BlackFideId "413470"]
[WhiteElo "2175"]
[BlackElo "2271"]
[Result "0-1"]
[Round "02"]
[TimeControl "180+1"]
[Date "2022.11.23"]
[WhiteClock "0:00:38"]
[BlackClock "0:00:18"]

1. e4 {[%clk 0:03:00]}  c5 {[%clk 0:02:59]} 2. Nf3 {[%clk 0:03:00]}  d6 {[%clk 0:03:00]} 3. d4 {[%clk 0:03:00]}  cxd4 {[%clk 0:03:00]} 4. Nxd4 {[%clk 0:03:01]}  Nf6 {[%clk 0:03:00]} 5. Nc3 {[%clk 0:03:01]}  a6 {[%clk 0:03:00]} 6. Be3 {[%clk 0:03:02]}  e5 {[%clk 0:03:00]} 7. Nb3 {[%clk 0:03:02]}  Be7 {[%clk 0:03:00]} 8. h3 {[%clk 0:03:02]}  h6 {[%clk 0:02:26]} 9. g4 {[%clk 0:02:59]}  Nbd7 {[%clk 0:02:20]} 10. Qd2 {[%clk 0:02:58]}  b5 {[%clk 0:02:12]} 11. O-O-O {[%clk 0:02:55]}  Bb7 {[%clk 0:02:07]} 12. f4 {[%clk 0:02:35]}  Nxe4 {[%clk 0:01:31]} 13. Nxe4 {[%clk 0:02:35]}  Bxe4 {[%clk 0:01:32]} 14. Bg2 {[%clk 0:02:35]}  Bxg2 {[%clk 0:01:31]} 15. Qxg2 {[%clk 0:02:36]}  O-O {[%clk 0:01:22]} 16. g5 {[%clk 0:02:25]}  exf4 {[%clk 0:01:22]} 17. gxh6 {[%clk 0:02:24]}  Bg5 {[%clk 0:01:16]} 18. hxg7 {[%clk 0:02:21]}  Re8 {[%clk 0:01:15]} 19. Bd2 {[%clk 0:02:20]}  a5 {[%clk 0:01:09]} 20. h4 {[%clk 0:02:20]}  Bh6 {[%clk 0:01:08]} 21. Nd4 {[%clk 0:02:19]}  Qf6 {[%clk 0:01:06]} 22. Nc6 {[%clk 0:02:00]}  Nb6 {[%clk 0:00:50]} 23. Kb1 {[%clk 0:01:51]}  Na4 {[%clk 0:00:43]} 24. Bc1 {[%clk 0:01:43]}  f3 {[%clk 0:00:41]} 25. Rhf1 {[%clk 0:01:24]}  Bxc1 {[%clk 0:00:34]} 26. c3 {[%clk 0:01:18]}  fxg2 {[%clk 0:00:33]} 27. Rxf6 {[%clk 0:01:18]}  Be3 {[%clk 0:00:34]} 28. h5 {[%clk 0:01:12]}  Kxg7 {[%clk 0:00:31]} 29. Rf3 {[%clk 0:01:11]}  Kh6 {[%clk 0:00:25]} 30. Rxd6+ {[%clk 0:01:07]}  Kxh5 {[%clk 0:00:23]} 31. Rg3 {[%clk 0:00:59]}  g1=Q+ {[%clk 0:00:23]} 32. Rxg1 {[%clk 0:01:00]}  Bxg1 {[%clk 0:00:24]} 33. Rd5+ {[%clk 0:00:58]}  Kg4 {[%clk 0:00:24]} 34. Rxb5 {[%clk 0:00:58]}  Re2 {[%clk 0:00:22]} 35. Ne5+ {[%clk 0:00:58]}  Kg3 {[%clk 0:00:21]} 36. Nxf7 {[%clk 0:00:56]}  Rf8 {[%clk 0:00:21]} 37. Rg5+ {[%clk 0:00:55]}  Kh4 {[%clk 0:00:21]} 38. Rxa5 {[%clk 0:00:47]}  Nxc3+ {[%clk 0:00:17]} 39. bxc3 {[%clk 0:00:47]}  Rxf7 {[%clk 0:00:18]} 40. Ra4+ {[%clk 0:00:45]}  Kh3 {[%clk 0:00:18]} 41. Rd4 {[%clk 0:00:37]}  Rf1+ {[%clk 0:00:17]} 42. Rd1 {[%clk 0:00:38]}  Rxd1# {[%clk 0:00:18]} 0-1


[Site "https://www.chess.com"]

[Event "Titled Tuesday Blitz November 22 Late 2022"]
[White "Tari, Aryan"]
[Black "Suder, Jakub"]
[WhiteFideId "1510045"]
[BlackFideId "1195310"]
[WhiteElo "2612"]
[BlackElo "2243"]
[Result "1-0"]
[Round "02"]
[TimeControl "180+1"]
[Date "2022.11.22"]
[WhiteClock "0:00:54"]
[BlackClock "0:00:30"]

1. e4 {[%clk 0:03:00]}  c5 {[%clk 0:03:00]} 2. Nc3 {[%clk 0:02:57]}  e6 {[%clk 0:03:00]} 3. d4 {[%clk 0:02:56]}  cxd4 {[%clk 0:02:57]} 4. Qxd4 {[%clk 0:02:57]}  Nc6 {[%clk 0:02:57]} 5. Qd3 {[%clk 0:02:57]}  Nf6 {[%clk 0:02:57]} 6. Bf4 {[%clk 0:02:56]}  d6 {[%clk 0:02:54]} 7. O-O-O {[%clk 0:02:56]}  e5 {[%clk 0:02:52]} 8. Bg3 {[%clk 0:02:57]}  Be6 {[%clk 0:02:48]} 9. f4 {[%clk 0:02:57]}  exf4 {[%clk 0:02:48]} 10. Bxf4 {[%clk 0:02:58]}  Rc8 {[%clk 0:02:41]} 11. Bxd6 {[%clk 0:02:51]}  Bxd6 {[%clk 0:02:40]} 12. Qxd6 {[%clk 0:02:52]}  Qa5 {[%clk 0:02:32]} 13. Bb5 {[%clk 0:02:34]}  a6 {[%clk 0:01:51]} 14. Ba4 {[%clk 0:02:01]}  b5 {[%clk 0:01:24]} 15. Bb3 {[%clk 0:01:51]}  Bxb3 {[%clk 0:01:19]} 16. axb3 {[%clk 0:01:52]}  Qa1+ {[%clk 0:01:13]} 17. Nb1 {[%clk 0:01:52]}  a5 {[%clk 0:00:45]} 18. Ne2 {[%clk 0:00:59]}  Nb4 {[%clk 0:00:34]} 19. Qe5+ {[%clk 0:00:57]}  Kf8 {[%clk 0:00:31]} 20. Qd6+ {[%clk 0:00:57]}  Kg8 {[%clk 0:00:30]} 21. Qd8+ {[%clk 0:00:54]} 1-0


[Site "https://www.chess.com"]

[Event "Titled Tuesday Blitz November 22 Late 2022"]
[White "Tomaszewski, Kacper"]
[Black "Schmidt, Harald"]
[WhiteFideId "1127373"]
[BlackFideId "4648358"]
[WhiteElo "2211"]
[BlackElo "2277"]
[Result "0-1"]
[Round "02"]
[TimeControl "180+1"]
[Date "2022.11.23"]
[WhiteClock "0:00:02"]
[BlackClock "0:00:43"]

1. Nf3 {[%clk 0:03:00]}  c5 {[%clk 0:02:59]} 2. e3 {[%clk 0:03:00]}  d5 {[%clk 0:02:57]} 3. b3 {[%clk 0:02:59]}  a6 {[%clk 0:02:56]} 4. Bb2 {[%clk 0:02:58]}  Bg4 {[%clk 0:02:54]} 5. h3 {[%clk 0:02:56]}  Bxf3 {[%clk 0:02:51]} 6. Qxf3 {[%clk 0:02:56]}  e6 {[%clk 0:02:51]} 7. d3 {[%clk 0:02:56]}  Nf6 {[%clk 0:02:49]} 8. Nd2 {[%clk 0:02:56]}  Be7 {[%clk 0:02:48]} 9. g4 {[%clk 0:02:54]}  O-O {[%clk 0:02:47]} 10. Bg2 {[%clk 0:02:49]}  Nc6 {[%clk 0:02:46]} 11. O-O {[%clk 0:02:39]}  Rc8 {[%clk 0:02:43]} 12. Qg3 {[%clk 0:02:38]}  b5 {[%clk 0:02:39]} 13. f4 {[%clk 0:02:37]}  c4 {[%clk 0:02:39]} 14. Nf3 {[%clk 0:02:32]}  Nb4 {[%clk 0:02:34]} 15. g5 {[%clk 0:02:10]}  Ne8 {[%clk 0:02:33]} 16. f5 {[%clk 0:01:43]}  exf5 {[%clk 0:02:32]} 17. Qe5 {[%clk 0:01:37]}  Bd6 {[%clk 0:02:08]} 18. Qxf5 {[%clk 0:01:35]}  Nxc2 {[%clk 0:02:05]} 19. Ne5 {[%clk 0:01:22]}  Nxe3 {[%clk 0:01:57]} 20. Nxf7 {[%clk 0:00:41]}  Nxf5 {[%clk 0:01:53]} 21. Nxd8 {[%clk 0:00:40]}  Rxd8 {[%clk 0:01:52]} 22. Bxd5+ {[%clk 0:00:40]}  Kh8 {[%clk 0:01:51]} 23. Be6 {[%clk 0:00:37]}  Bc5+ {[%clk 0:01:43]} 24. d4 {[%clk 0:00:36]}  Bxd4+ {[%clk 0:01:27]} 25. Bxd4 {[%clk 0:00:35]}  Rxd4 {[%clk 0:01:26]} 26. Rxf5 {[%clk 0:00:35]}  Rxf5 {[%clk 0:01:22]} 27. Bxf5 {[%clk 0:00:36]}  Rd5 {[%clk 0:01:19]} 28. Rf1 {[%clk 0:00:29]}  Nd6 {[%clk 0:01:18]} 29. Bc8 {[%clk 0:00:21]}  Rxg5+ {[%clk 0:01:17]} 30. Kh2 {[%clk 0:00:21]}  g6 {[%clk 0:01:16]} 31. bxc4 {[%clk 0:00:12]}  bxc4 {[%clk 0:01:14]} 32. Bxa6 {[%clk 0:00:11]}  Ra5 {[%clk 0:01:11]} 33. Rf8+ {[%clk 0:00:09]}  Kg7 {[%clk 0:01:11]} 34. Ra8 {[%clk 0:00:10]}  c3 {[%clk 0:01:08]} 35. Ra7+ {[%clk 0:00:08]}  Kh6 {[%clk 0:01:07]} 36. Kg3 {[%clk 0:00:04]}  c2 {[%clk 0:01:00]} 37. Rc7 {[%clk 0:00:05]}  Nf5+ {[%clk 0:00:56]} 38. Kf2 {[%clk 0:00:03]}  Rxa2 {[%clk 0:00:50]} 39. Be2 {[%clk 0:00:03]}  Nd4 {[%clk 0:00:45]} 40. Ke3 {[%clk 0:00:02]}  Nxe2 {[%clk 0:00:43]} 0-1


[Site "https://www.chess.com"]